fUSD/lending_fUSD_20240918
["ID","MTS","AMOUNT","RATE_DAILY","PERIOD"]
[338469016,1726671041451,-151.0,0.0001499,2]
[338469018,1726671041461,-154.992102,0.0001499,2]
[338469020,1726671041470,-151.0,0.0001499,2]
[338469022,1726671041479,-151.0,0.0001499,2]
[338469024,1726671041488,-151.0,0.0001499,2]
[338469026,1726671041498,-154.001137,0.0001499,2]
[338469028,1726671041506,-154.444615,0.0001499,2]
[338469030,1726671041516,-154.444615,0.0001499,2]
[338469031,1726671041525,-793.582363,0.0001499,2]
[338469033,1726671041534,-793.582363,0.0001499,2]
[338469035,1726671041551,-152.673309,0.0001499,2]
[338469037,1726671041560,-384.185806,0.0001499,2]
[338469039,1726671041569,-151.0,0.0001499,2]
[338469040,1726671041579,-384.185806,0.0001499,2]
[338469042,1726671041589,-151.0,0.0001499,2]
[338469044,1726671041598,-151.0,0.0001499,2]
[338469046,1726671041607,-151.0,0.0001499,2]
[338469048,1726671041617,-151.0,0.0001499,2]
[338469049,1726671041626,-151.0,0.0001499,2]
[338469051,1726671041636,-151.0,0.0001499,2]
[338469053,1726671041645,-151.0,0.0001499,2]
[338469055,1726671041655,-151.0,0.0001499,2]
[338469057,1726671041664,-151.0,0.0001499,2]
[338469059,1726671041674,-155.12062,0.0001499,2]
[338469061,1726671041683,-269.872784,0.0001499,2]
[338469062,1726671041692,-269.872784,0.0001499,2]
[338469064,1726671041701,-159.71971,0.0001499,2]
[338469066,1726671041711,-159.71971,0.0001499,2]
[338469068,1726671041720,-317.218152,0.0001499,2]
[338469069,1726671041730,-317.218152,0.0001499,2]
[338469071,1726671041740,-151.0,0.0001499,2]
[338469073,1726671041752,-217.984363,0.0001499,2]
[338469075,1726671041762,-151.0,0.0001499,2]
[338469077,1726671041772,-217.984363,0.0001499,2]
[338469079,1726671041781,-151.0,0.0001499,2]
[338469081,1726671041793,-151.0,0.0001499,2]
[338469083,1726671041802,-151.0,0.0001499,2]
[338469085,1726671041811,-316.046774,0.0001499,2]
[338469087,1726671041821,-316.046774,0.0001499,2]
[338469089,1726671041830,-571.147099,0.0001499,2]
[338469091,1726671041839,-571.147099,0.0001499,2]
[338469093,1726671041848,-151.0,0.0001499,2]
[338469095,1726671041857,-151.0,0.0001499,2]
[338469097,1726671041866,-151.0,0.0001499,2]
[338469099,1726671041875,-205.016221,0.0001499,2]
[338469101,1726671041885,-205.016221,0.0001499,2]
[338469103,1726671041894,-151.0,0.0001499,2]
[338469105,1726671041903,-169.292478,0.0001499,2]
[338469107,1726671041912,-169.292478,0.0001499,2]
[338469109,1726671041921,-850.938178,0.0001499,2]
[338469110,1726671041931,-850.938178,0.0001499,2]
[338469112,1726671041941,-151.0,0.0001499,2]
[338469114,1726671041951,-151.0,0.0001499,2]
[338469116,1726671041960,-151.0,0.0001499,2]
[338469118,1726671041969,-151.0,0.0001499,2]
[338469120,1726671041979,-151.0,0.0001499,2]
[338469122,1726671041989,-180.737945,0.0001499,2]
[338469124,1726671041999,-169.718799,0.0001499,2]
[338469126,1726671042008,-180.737945,0.0001499,2]
[338469128,1726671042018,-169.718799,0.0001499,2]
[338469130,1726671042027,-228.512052,0.0001499,2]
[338469132,1726671042038,-228.512052,0.0001499,2]
[338469134,1726671042048,-151.0,0.0001499,2]
[338469136,1726671042057,-272.457567,0.0001499,2]
[338469138,1726671042067,-579.462696,0.0001499,2]
[338469140,1726671042077,-579.462696,0.0001499,2]
[338469142,1726671042088,-542.13019,0.0001499,2]
[338469144,1726671042097,-1009.663538,0.0001499,2]
[338469146,1726671042106,-542.13019,0.0001499,2]
[338469148,1726671042116,-1009.663538,0.0001499,2]
[338469150,1726671042126,-151.0,0.0001499,2]
[338469152,1726671042135,-151.0,0.0001499,2]
[338469154,1726671042144,-151.0,0.0001499,2]
[338469156,1726671042154,-279.425848,0.0001499,2]
[338469158,1726671042164,-300.013597,0.0001499,2]
[338469160,1726671042174,-184.166406,0.0001499,2]
[338469162,1726671042183,-300.013597,0.0001499,2]
[338469164,1726671042193,-373.688115,0.0001499,2]
[338469166,1726671042203,-373.688115,0.0001499,2]
[338469168,1726671042212,-151.0,0.0001499,2]
[338469170,1726671042222,-151.0,0.0001499,2]
[338469172,1726671042232,-915.688385,0.0001499,2]
[338469174,1726671042242,-151.0,0.0001499,2]
[338469176,1726671042251,-151.0,0.0001499,2]
[338469178,1726671042262,-915.688385,0.0001499,2]
[338469180,1726671042274,-151.0,0.0001499,2]
[338469181,1726671042283,-209.262253,0.0001499,2]
[338469184,1726671042295,-255.928636,0.0001499,2]
[338469186,1726671042305,-209.262253,0.0001499,2]
[338469188,1726671042316,-255.928636,0.0001499,2]
[338469190,1726671042327,-151.0,0.0001499,2]
[338469192,1726671042336,-151.0,0.0001499,2]
[338469194,1726671042346,-254.558539,0.0001499,2]
[338469196,1726671042356,-254.558539,0.0001499,2]
[338469197,1726671042366,-151.0,0.0001499,2]
[338469199,1726671042376,-151.0,0.0001499,2]
[338469201,1726671042385,-151.0,0.0001499,2]
[338469203,1726671042395,-151.0,0.0001499,2]
[338469205,1726671042404,-151.0,0.0001499,2]
[338469207,1726671042414,-917.90705232,0.00014995,2]
[338469208,1726671042424,-500.0,0.00014997,2]
[338469210,1726671042433,-500.0,0.00014997,2]
[338469212,1726671042443,-500.0,0.00014997,2]
[338469214,1726671042453,-500.0,0.00014997,2]
[338469216,1726671042463,-500.0,0.00014997,2]
[338469218,1726671042473,-500.0,0.00014997,2]
[338469220,1726671042482,-500.0,0.00014997,2]
[338469222,1726671042492,-500.0,0.00014997,2]
[338469224,1726671042501,-500.0,0.00014997,2]
[338469226,1726671042511,-500.0,0.00014997,2]
[338469228,1726671042521,-500.0,0.00014997,2]
[338469230,1726671042530,-500.0,0.00014997,2]
[338469231,1726671042543,-411.61602971,0.00014997,2]
[338469233,1726671042552,-1000.0,0.00014999,2]
[338469235,1726671042561,-1000.0,0.00014999,2]
[338469237,1726671042571,-1000.0,0.00014999,2]
[338469239,1726671042581,-1000.0,0.00014999,2]
[338469241,1726671042592,-1000.0,0.00014999,2]
[338469243,1726671042602,-417.3672,0.00014999,2]
[338469245,1726671042611,-5594.56023423,0.00015,2]
[338469246,1726671042621,-1311724.78933265,0.00015,2]
[338469363,1726671043826,-913.1421231,0.00015,2]
[338469364,1726671043853,-1165.4,0.00015,2]
[338469425,1726671044583,-17431.97848714,0.00013,2]
[338469427,1726671044597,-87286.5,0.00013,2]
[338469550,1726671045871,-737.92240428,0.00013,2]
[338469552,1726671045882,-414.28650528,0.00013,2]
[338469554,1726671045893,-2082.4977933,0.00013,2]
[338469556,1726671045904,-721.62621433,0.00013,2]
[338469571,1726671046054,-5985.447,0.00013,2]
[338470018,1726671108595,3870.0,0.000103,5]
[338470019,1726671128851,187.98,0.00012119,2]
[338470020,1726671464848,3000.0,0.00012,3]
[338470021,1726671516354,190.72,0.00010959,2]
[338470022,1726671761132,197.8,0.00011694,2]
[338470027,1726672232063,-1316.73334251,0.000129,2]
[338470028,1726672232075,-1051.98105749,0.000129,2]
[338470029,1726672232085,-332.13,0.00013,2]
[338470030,1726672232094,-500.0,0.00013,2]
[338470031,1726672232105,-3187.0,0.00013,3]
[338470032,1726672232115,-368.84894251,0.00013,2]
[338470033,1726672232128,-632.65105749,0.00013,2]
[338470034,1726672232137,-168.31,0.00013272,2]
[338470035,1726672232147,-150.24,0.00013311,2]
[338470036,1726672232157,-520.94516441,0.00013315,2]
[338470037,1726672232171,-553.37483559,0.00013315,2]
[338470038,1726672232183,-150.0,0.00013488,2]
[338470040,1726672232195,-153.33470335,0.0001352,2]
[338470042,1726672232206,-78.50529665,0.0001352,2]
[338470044,1726672232216,-1000.0,0.0001352,2]
[338470046,1726672232226,-155.18,0.00013532,2]
[338470048,1726672232235,-250.0,0.00013532,2]
[338470050,1726672232244,-255.0,0.00013586,2]
[338470052,1726672232254,-5106.47470335,0.00013586,2]
[338470055,1726672232266,-649.11817287,0.00013586,2]
[338470057,1726672232277,-3665.85712378,0.00013586,2]
[338470059,1726672232286,-150.0,0.00013595,2]
[338470061,1726672232296,-1054.01493654,0.00013634,2]
[338470064,1726672232307,-353.79852739,0.00013634,2]
[338470066,1726672232319,-92.18653607,0.00013634,2]
[338470068,1726672232329,-150.0,0.00013698,2]
[338470070,1726672232339,-200.0,0.00013699,2]
[338470072,1726672232348,-150.0,0.00013699,2]
[338470075,1726672232358,-3624.48656921,0.00013699,2]
[338470077,1726672232369,-957.45343079,0.00013699,2]
[338470079,1726672232380,-428.54656921,0.00013699,2]
[338470081,1726672232391,-3920.52685054,0.00013699,2]
[338470083,1726672232403,-3145.49796854,0.00013699,2]
[338470087,1726672232431,-851.45896926,0.00013699,2]
[338470089,1726672232445,-520.41993916,0.00013699,2]
[338470092,1726672232456,-10493.25970329,0.00013699,2]
[338470094,1726672232466,-150.0,0.00013702,2]
[338470096,1726672232476,-150.0,0.00013809,2]
[338470097,1726672232486,-28412.09991474,0.00013826,2]
[338470099,1726672232499,-1587.89008526,0.00013826,2]
[338470100,1726672232512,-4839.69803941,0.00013826,2]
[338470101,1726672232789,-479.84771151,0.00013826,2]
[338470102,1726672232814,-361.36554768,0.00013826,2]
[338470103,1726672232827,-941.9294163,0.00013826,2]
[338470104,1726672232838,-396.81372508,0.00013826,2]
[338470105,1726672232848,-300.3,0.00013826,2]
[338470106,1726672232859,-1326.47409564,0.00013826,2]
[338470109,1726672237900,-289.394105,0.00013826,2]
[338470110,1726672238101,-474.71702,0.00013826,2]
[338470111,1726672238178,-4005.98994,0.00013826,2]
[338470113,1726672240063,-386.21355228,0.00013826,2]
[338470114,1726672240074,-416.3731798,0.00013826,2]
[338470115,1726672240087,-1491.0235231,0.00013826,2]
[338470351,1726672242920,-11578.02151287,0.00013826,2]
[338470370,1726672243098,-2711.82863133,0.00013826,2]
[338470372,1726672243107,-184.17136867,0.00013826,2]
[338470433,1726672243693,-35.42863133,0.00013826,2]
[338470435,1726672243704,-187.27,0.00013873,2]
[338470437,1726672243714,-150.0,0.00013916,2]
[338470439,1726672243723,-197.8,0.00013957,2]
[338470441,1726672243733,-150.0,0.00014023,2]
[338470443,1726672243742,-150.0,0.00014059,2]
[338470445,1726672243751,-150.0,0.0001413,2]
[338470447,1726672243761,-150.0,0.00014237,2]
[338470448,1726672243770,-150.0,0.00014344,2]
[338470451,1726672243779,-439.50136867,0.00014405,2]
[338470541,1726672246138,-561.99863133,0.00014405,2]
[338470543,1726672246148,-150.0,0.0001442,2]
[338470545,1726672246157,-150.0,0.00014451,2]
[338470547,1726672246167,-1000.0,0.00014521,2]
[338470549,1726672246176,-1372.71093522,0.00014546,2]
[338470551,1726672246186,-150.0,0.00014558,2]
[338470553,1726672246195,-214.216,0.00014562,2]
[338470555,1726672246208,-260.963,0.00014562,2]
[338470556,1726672246222,-503.0,0.000146,2]
[338470557,1726672246231,-169.70686125,0.000146,2]
[338470558,1726672246240,-206.575,0.00014661,2]
[338470559,1726672246250,-150.0,0.00014665,2]
[338470560,1726672246259,-1088.59847951,0.000147,2]
[338470561,1726672246271,-2986.597043,0.000147,2]
[338470562,1726672246342,-319.9750006,0.000147,2]
[338470563,1726672317739,215.73,0.00012047,2]
[338470564,1726672325672,3089.58295623,0.000102,5]
[338470565,1726672325701,3089.58295623,0.000102,5]
[338470566,1726672325734,3089.58295623,0.000102,5]
[338470567,1726672325763,95.25113131,0.000102,5]
[338470571,1726672937221,204.94,0.00011178,2]
[338470572,1726673222824,310.39588909,0.000129,2]
[338470574,1726673239524,200.0,0.000126,4]
[338470575,1726673240803,500.0,0.000127,4]
[338470576,1726673242937,800.0,0.000128,4]
[338470577,1726673245038,978.99593583,0.000129,4]
[338470578,1726673245086,121.00406417,0.000129,4]
[338470579,1726673246479,2115.74790399,0.0001288,2]
[338470580,1726673246521,3089.58295623,0.0001288,2]
[338470581,1726673272315,188.87,0.00010959,2]
[338470583,1726673296403,3800.96,0.0001231,2]
[338470584,1726673302632,185.47,0.00012189,2]
[338470586,1726673327104,150.31,0.00012157,2]
[338470602,1726673432131,-956.69375819,0.0001288,2]
[338470605,1726673432144,-3702.08686573,0.0001288,2]
[338470607,1726673432156,-642.3977412,0.0001288,2]
[338470608,1726673432168,-1033.7,0.0001288,2]
[338470609,1726673432354,-397.56791311,0.0001288,2]
[338470610,1726673432366,-2950.76269181,0.0001288,2]
[338470611,1726673432378,-300.0,0.00012899,2]
[338470613,1726673432388,-162.93174475,0.000129,2]
[338470615,1726673432398,-169.2741997,0.000129,2]
[338470617,1726673432407,-163.96,0.00012956,2]
[338470619,1726673432417,-163.96,0.00012964,2]
[338470621,1726673432428,-163.96,0.00012972,2]
[338470623,1726673432437,-163.96,0.0001298,2]
[338470625,1726673432447,-163.96,0.00012988,2]
[338470627,1726673432457,-151.19,0.0001299,2]
[338470629,1726673432467,-163.65876381,0.0001299,2]
[338470631,1726673432477,-163.96,0.00012997,2]
[338470632,1726673432487,-320.89,0.00012999,2]
[338470633,1726673432496,-150.0,0.00012999,2]
[338470634,1726673432506,-17286.77549831,0.00013,2]
[338470635,1726673432515,-298.91,0.00013,2]
[338470636,1726673432525,-3159.46267644,0.00013,2]
[338470637,1726673432535,-1003.92,0.00013,2]
[338470638,1726673432544,-128663.82767379,0.00013,2]
[338470639,1726673432556,-568.06748986,0.00013,2]
[338470640,1726673435182,211.52,0.00010674,2]
[338470687,1726673440167,-211.52,0.00012938,2]
[338470688,1726673440177,-88.48,0.00013,2]
[338470689,1726673440190,-560.58454009,0.00013,2]
[338470690,1726673440202,-462.5699106,0.00013,2]
[338470691,1726673440256,-989.22878096,0.00013,2]
[338470692,1726673440269,-952.47687904,0.00013,2]
[338470696,1726673440863,-387410.88083198,0.00013,2]
[338470697,1726673440875,-28924.66888036,0.00013,2]
[338470698,1726673441082,-1735.87471476,0.00013,2]
[338470699,1726673441492,-4130.24694756,0.00013,2]
[338470700,1726673441627,-16384.0,0.00013,2]
[338470722,1726673443156,-316.8766274,0.00013,2]
[338470745,1726673444728,-11695.53569262,0.00013,2]
[338470765,1726673446739,-6002.6,0.00013,2]
[338470770,1726673446770,-2195.89994358,0.00013,2]
[338470777,1726673475212,250.75,0.00012497,2]
[338470778,1726673482169,1157.0,0.000102,5]
[338470779,1726673545223,2414.67,0.0001254,2]
[338470780,1726673554153,250.0,0.00012584,2]
[338470781,1726673662822,250.0,0.00012474,2]
[338470782,1726673691583,250.0,0.00012501,2]
[338470783,1726673726693,225.0,0.00012501,2]
[338470784,1726673746071,289.1,0.00012545,2]
[338470785,1726673747391,1000.0,0.00012617,2]
[338470786,1726673764191,1500.0,0.00012565,2]
[338470787,1726673801228,153.45,0.00010959,2]
[338470788,1726673834762,1852.42,0.00012491,2]
[338470789,1726673908745,163.96,0.00012488,2]
[338470790,1726673908952,163.96,0.00012519,2]
[338470791,1726673910246,163.96,0.0001255,2]
[338470792,1726673987716,207.74,0.00010674,2]
[338470793,1726674147601,771.69623625,0.00012,4]
[338470794,1726674178439,611.96949687,0.00012625,2]
[338470795,1726674231724,373.429295,0.00012618,2]
[338470796,1726674316137,150.0,0.00011688,2]
[338470797,1726674316458,150.0,0.00012337,2]
[338470798,1726674325723,244.78398037,0.00011688,2]
[338470809,1726674456614,-250.0,0.00012681,2]
[338470810,1726674456639,-250.0,0.00012712,2]
[338470811,1726674456661,-163.51,0.00012725,2]
[338470812,1726674456686,-159.05875729,0.000129,2]
[338470813,1726674456708,-167.66392195,0.000129,2]
[338470814,1726674456731,-320.57782606,0.000129,2]
[338470815,1726674456756,-207.74,0.00012938,2]
[338470816,1726674456779,-150.0,0.00012959,2]
[338470817,1726674456801,-160.28937348,0.00012973,2]
[338470818,1726674456824,-282.57705947,0.00012986,2]
[338470819,1726674456849,-151.26,0.0001299,2]
[338470820,1726674456872,-3886.28585161,0.0001299,2]
[338470821,1726674456895,-9321.36,0.0001299,2]
[338470822,1726674456920,-500.0,0.00012999,2]
[338470823,1726674456955,-426.26321103,0.00012999,2]
[338470824,1726674500855,181.18,0.00010959,2]
[338470825,1726674510527,247.96,0.00011488,2]
[338470826,1726674607274,1572.91,0.00012,10]
[338470832,1726674632231,-276.25,0.00012888,2]
[338470834,1726674632242,-575.90275496,0.00012899,2]
[338470837,1726674632252,-250.0,0.00012902,2]
[338470839,1726674632262,-169.25,0.00012923,2]
[338470841,1726674632271,-151.75,0.0001299,2]
[338470843,1726674632280,-179.31398523,0.0001299,2]
[338470844,1726674632289,-300.0,0.00012999,2]
[338470847,1726674632299,-150.0,0.00012999,2]
[338470849,1726674632309,-1097.73841058,0.00013,2]
[338470853,1726674632542,-1172.73066466,0.00013,2]
[338470854,1726674632613,-267.95,0.00013,2]
[338470857,1726674632660,-450.0,0.00013,2]
[338470858,1726674632692,-904.8607206,0.00013,2]
[338470859,1726674632703,-579.913739,0.00013,2]
[338470862,1726674638220,-5818.5138,0.00013,2]
[338470863,1726674638401,-460.04,0.00013,2]
[338470864,1726674638455,-3336.84266516,0.00013,2]
[338470865,1726674638464,-1161.41268332,0.00013,2]
[338470941,1726674643367,-4099.51439498,0.00013,2]
[338470942,1726674643377,-199.94,0.00013,2]
[338470943,1726674643387,-1330.22966025,0.00013,2]
[338470944,1726674643428,-715.58487265,0.00013,2]
[338470946,1726674648497,-2382.9921083,0.00013,2]
[338470947,1726674648661,-282.11499971,0.00013,2]
[338470948,1726674663221,4470.04,0.00012,10]
[338470949,1726674696123,7422.0,0.000102,5]
[338470951,1726675007661,268.83,0.00011029,2]
[338470954,1726675541438,255.38,0.00010812,2]
[338470958,1726675772314,150.0,0.00014957,120]
[338470964,1726675831399,-163.51,0.0001287,2]
[338470965,1726675831410,-189.85068605,0.000129,2]
[338470966,1726675831420,-320.57782605,0.000129,2]
[338470967,1726675831430,-159.21119707,0.000129,2]
[338470968,1726675831440,-150.0,0.00012935,2]
[338470969,1726675831451,-300.0,0.00012972,2]
[338470970,1726675831460,-267.2279407,0.00012973,2]
[338470971,1726675831470,-175.01683303,0.00012973,2]
[338470972,1726675831480,-500.0,0.00012973,2]
[338470973,1726675831489,-160.3886158,0.00012973,2]
[338470974,1726675831501,-4721.39475057,0.0001299,2]
[338470975,1726675831511,-179.31398523,0.0001299,2]
[338470976,1726675831520,-151.21,0.0001299,2]
[338470977,1726675831530,-310.54965977,0.00012999,2]
[338470978,1726675831539,-360.26236978,0.00012999,2]
[338470979,1726675831567,-139.73763022,0.00012999,2]
[338470980,1726675831577,-474.90645564,0.00012999,2]
[338470981,1726675831587,-500.0,0.00012999,2]
[338470982,1726675831597,-501.75625384,0.00012999,2]
[338470983,1726675831607,-500.0,0.00012999,2]
[338470984,1726675831616,-629.85292777,0.00012999,2]
[338470985,1726675831626,-229.814,0.00012999,2]
[338470986,1726675831636,-150.0,0.00012999,2]
[338470987,1726675831645,-150.0,0.00012999,2]
[338470988,1726675831655,-55727.16115281,0.00013,2]
[338470989,1726675831666,-580.18987228,0.00013,2]
[338470990,1726675831836,-1193.8058045,0.00013,2]
[338470997,1726675837755,-500.0,0.00012973,2]
[338470998,1726675837764,-2722.75993227,0.00013,2]
[338471002,1726675837791,-2564.44491418,0.00013,2]
[338471065,1726675839542,-528103.53186154,0.00013,2]
[338471066,1726675839569,-3277.30868066,0.00013,2]
[338471067,1726675839597,-1150.11080632,0.00013,2]
[338471068,1726675839608,-1662.196,0.00013,2]
[338471069,1726675839631,-1999.23869066,0.00013,2]
[338471070,1726675839669,-600.12148597,0.00013,2]
[338471071,1726675839710,-1666.0218171,0.00013,2]
[338471161,1726675842450,-848.75678596,0.00013,2]
[338471162,1726675842462,-1213.0,0.00013,2]
[338471163,1726675842507,-20197.87405999,0.00013,2]
[338471164,1726675842560,-428.2505466,0.00013,2]
[338471170,1726675842774,-3572.7675236,0.00013,2]
[338471178,1726675845456,-593.8,0.00013,2]
[338471179,1726675845476,-972.68403772,0.00013,2]
[338471180,1726675845488,-677.99999947,0.00013,2]
[338471181,1726675845499,-304.11714064,0.00013,2]
[338471182,1726675845511,-2247.9574,0.00013,2]
[338471183,1726675845529,-57891.49658659,0.00013,2]
[338471184,1726675845540,-369.15130269,0.00013,2]
[338471185,1726675845550,-21898.36411941,0.00013,2]
[338471186,1726675845562,-1033.05017563,0.00013,2]
[338471187,1726675845572,-70864.27890022,0.00013,2]
[338471188,1726675845583,-379.71008372,0.00013,2]
[338471189,1726675845594,-1104.89183922,0.00013,2]
[338471190,1726675845604,-27688.54348175,0.00013,2]
[338471191,1726675845695,-22261.5809732,0.00013,2]
[338471192,1726675845707,-384.50318454,0.00013,2]
[338471193,1726675845725,-2091.0265999,0.00013,2]
[338471194,1726675951420,150.0,0.00014302,120]
[338471195,1726675971102,3639.8892963,0.00014,30]
[338471196,1726676155292,250.0,0.00012733,2]
[338471197,1726676175405,200.0,0.00010924,2]
[338471198,1726676175428,73.79,0.00010924,2]
[338471199,1726676274833,154.11,0.00010959,2]
[338471200,1726676641691,500.0,0.0001087,2]
[338471201,1726676642077,500.0,0.00010871,2]
[338471202,1726676642824,500.0,0.00010871,2]
[338471203,1726676643000,500.0,0.00010871,2]
[338471204,1726676643459,500.0,0.00010871,2]
[338471205,1726676643951,500.0,0.00010871,2]
[338471206,1726676657839,200.0,0.00010959,2]
[338471207,1726676658061,200.0,0.00010959,2]
[338471208,1726676658704,200.0,0.00010959,2]
[338471209,1726676659111,200.0,0.00010959,2]
[338471210,1726676704307,274.99,0.0001063,2]
[338471211,1726676750791,153.45,0.00010959,2]
[338471212,1726676835059,250.0,0.00012582,2]
[338471213,1726676852787,1500.0,0.00012493,2]
[338471214,1726676889408,250.0,0.00012587,2]
[338471220,1726676951680,-154.11,0.0001288,2]
[338471222,1726676951707,-154.11,0.0001289,2]
[338471223,1726676951733,-154.11,0.0001289,2]
[338471225,1726676951760,-154.11,0.0001289,2]
[338471227,1726676951785,-154.11,0.0001289,2]
[338471228,1726676951811,-154.11,0.0001289,2]
[338471229,1726676951837,-274.99,0.00012894,2]
[338471230,1726676951865,-74.48149194,0.00012899,2]
[338471253,1726677031681,-150.0,0.00012899,2]
[338471254,1726677031691,-187.01913656,0.000129,2]
[338471279,1726677037525,-500.0,0.00012899,2]
[338471280,1726677037534,-199.59513121,0.00012899,2]
[338471281,1726677037544,-672.87285644,0.000129,2]
[338471282,1726677037555,-1151.80494795,0.000129,4]
[338471288,1726677039632,-1194.145,0.000129,4]
[338471289,1726677039748,-3596.50153414,0.000129,4]
[338471326,1726677042650,-712.48905944,0.000129,4]
[338471327,1726677042662,-1460.8962664,0.000129,4]
[338471328,1726677042704,-28264.77029984,0.000129,4]
[338471329,1726677042713,-2030.3099,0.000129,2]
[338471330,1726677042723,-277.27582104,0.000129,2]
[338471331,1726677042733,-163936.90630226,0.000129,2]
[338471332,1726677042744,-12248.12063768,0.000129,2]
[338471333,1726677042770,-461.20857413,0.000129,2]
[338471338,1726677045815,-444.83,0.000129,2]
[338471339,1726677045888,-597.61986677,0.000129,2]
[338471340,1726677045900,-2684.25585774,0.000129,2]
[338471341,1726677046048,-845.61309865,0.000129,2]
[338471342,1726677046059,-414.28650528,0.000129,2]
[338471343,1726677046072,-2082.4977933,0.000129,2]
[338471344,1726677046085,-721.62621433,0.000129,2]
[338471345,1726677218701,276.63,0.00010705,2]
[338471346,1726677360389,51.55,0.00012399,2]
[338471347,1726677360414,1448.45,0.00012399,2]
[338471348,1726677436827,172.12,0.00010959,2]
[338471349,1726677483043,185.17,0.00012354,2]
[338471350,1726677591368,250.0,0.00012238,2]
[338471351,1726677663828,-413.64,0.00012787,2]
[338471352,1726677663850,-300.0,0.00012788,2]
[338471353,1726677663871,-413.64,0.00012789,2]
[338471354,1726677663897,-413.64,0.00012789,2]
[338471355,1726677663919,-413.64,0.00012789,2]
[338471356,1726677663941,-413.64,0.00012789,2]
[338471357,1726677663963,-413.64,0.00012789,2]
[338471358,1726677663983,-413.64,0.00012789,2]
[338471359,1726677664003,-413.64,0.00012789,2]
[338471360,1726677664023,-413.64,0.00012789,2]
[338471361,1726677664043,-413.64,0.0001279,2]
[338471362,1726677664064,-500.0,0.00012797,2]
[338471363,1726677664084,-200.0,0.00012797,2]
[338471364,1726677664104,-801.5619,0.00012799,2]
[338471365,1726677664124,-9798.8944,0.00012799,2]
[338471366,1726677664159,-1929.496,0.00012799,2]
[338471367,1726677664180,-493.199,0.00012799,2]
[338471368,1726677664200,-2851.4571,0.00012799,2]
[338471369,1726677664220,-166.768,0.00012799,2]
[338471370,1726677664241,-6890.5616,0.00012799,2]
[338471371,1726677664262,-150.0,0.00012799,2]
[338471372,1726677664282,-500.0,0.000128,2]
[338471373,1726677664303,-6243.2312,0.000128,2]
[338471374,1726677664324,-35855.1408,0.000128,2]
[338471375,1726677719986,276.32,0.00010447,2]
[338471376,1726677720159,276.32,0.00012711,2]
[338471377,1726677735870,3851.58725673,0.00012,2]
[338471378,1726677831855,500.0,0.00011904,2]
[338471379,1726677845263,200.0,0.00011904,2]
[338471380,1726677934540,151.12,0.00010959,2]
[338471381,1726677965503,1000.0,0.00012317,2]
[338471382,1726677973983,1500.0,0.00012317,2]
[338471383,1726678038593,287.05,0.00012292,2]
[338471384,1726678108024,-500.0,0.00012799,2]
[338471385,1726678108049,-655.0721,0.00012799,2]
[338471386,1726678108074,-503.1558,0.00012799,2]
[338471387,1726678108100,-1472.21028245,0.00012799,2]
[338471388,1726678108164,-1027.78971755,0.00012799,2]
[338471389,1726678108193,-1310.26522573,0.00012799,2]
[338471390,1726678108218,-150.0,0.00012799,2]